fUST/lending_fUST_20240218
["ID","MTS","AMOUNT","RATE_DAILY","PERIOD"]
[314331417,1708189840767,-516.66,0.00028757,3]
[314331419,1708189840775,-264.10678063,0.00028765,2]
[314331421,1708189840784,-155.1219646,0.00028765,2]
[314331423,1708189840793,-181.01915082,0.00028765,2]
[314331425,1708189840802,-151.0,0.00028766,2]
[314331427,1708189840812,-568.429312,0.00028766,2]
[314331429,1708189840821,-568.429312,0.00028766,2]
[314331431,1708189840830,-155.0,0.00028767,2]
[314331433,1708189840839,-500.0,0.00028767,2]
[314331434,1708189840848,-500.0,0.00028767,2]
[314331436,1708189840857,-500.0,0.00028767,2]
[314331438,1708189840866,-151.0,0.00028767,2]
[314331440,1708189840875,-580.14,0.00028767,2]
[314331442,1708189840884,-590.73,0.00028767,2]
[314331444,1708189840893,-571.95,0.00028767,2]
[314331446,1708189840902,-519.94,0.00028767,2]
[314331448,1708189840911,-1171.93,0.00028767,2]
[314331450,1708189840921,-500.0,0.00028767,2]
[314331452,1708189840930,-500.0,0.00028767,2]
[314331454,1708189840939,-500.0,0.00028767,2]
[314331456,1708189840948,-568.429312,0.00028767,2]
[314331458,1708189840957,-568.429312,0.00028767,2]
[314331460,1708189840966,-644.06,0.00028767,2]
[314331461,1708189840975,-825.93,0.00028767,2]
[314331463,1708189840984,-1000.0,0.00028767,2]
[314331465,1708189840993,-500.0,0.00028767,2]
[314331467,1708189841002,-500.0,0.00028767,2]
[314331469,1708189841011,-500.0,0.00028767,2]
[314331471,1708189841020,-500.0,0.00028767,2]
[314331473,1708189841029,-1022.87,0.00028767,2]
[314331475,1708189841037,-10935.51,0.00028767,2]
[314331477,1708189841046,-7067.18,0.00028767,2]
[314331479,1708189841055,-500.0,0.00028767,2]
[314331480,1708189841064,-153.752227,0.00028767,2]
[314331482,1708189841073,-153.752227,0.00028767,2]
[314331484,1708189841082,-635.23390049,0.00028767,2]
[314331488,1708189841163,-153.752227,0.00028767,2]
[314331489,1708189841173,-153.752227,0.00028767,2]
[314331490,1708189841182,-151.0,0.00028767,2]
[314331491,1708189841191,-151.0,0.00028767,2]
[314331492,1708189841200,-1585.15,0.00028767,2]
[314331493,1708189841211,-5713.42,0.00028767,2]
[314331494,1708189841220,-2084.15,0.00028767,2]
[314331495,1708189841229,-500.0,0.00028767,2]
[314331496,1708189841237,-500.0,0.00028767,2]
[314331497,1708189841246,-782.06,0.00028767,2]
[314331498,1708189841255,-870.91,0.00028767,2]
[314331499,1708189841263,-1726.08,0.00028767,2]
[314331500,1708189841272,-1035.61,0.00028767,2]
[314331501,1708189841281,-500.0,0.00028767,2]
[314331502,1708189841290,-500.0,0.00028767,2]
[314331503,1708189841299,-756.19,0.00028767,2]
[314331504,1708189841308,-500.0,0.00028767,2]
[314331506,1708189841318,-1431.14,0.00028767,2]
[314331507,1708189841327,-8931.85,0.00028767,2]
[314331509,1708189841336,-739.83,0.00028767,2]
[314331511,1708189841346,-623.27,0.00028767,2]
[314331513,1708189841355,-5166.52,0.00028767,2]
[314331515,1708189841364,-1200.27,0.00028767,2]
[314331517,1708189841374,-500.0,0.00028767,2]
[314331519,1708189841383,-4263.38,0.00028767,2]
[314331521,1708189841392,-1042.33,0.00028767,2]
[314331523,1708189841402,-892.66,0.00028767,2]
[314331525,1708189841411,-500.0,0.00028767,2]
[314331527,1708189841422,-1492.84,0.00028767,2]
[314331529,1708189841432,-500.0,0.00028767,2]
[314331531,1708189841441,-1112.424278,0.00028767,2]
[314331533,1708189841450,-1112.424285,0.00028767,2]
[314331535,1708189841459,-772.32,0.00028767,2]
[314331537,1708189841468,-500.0,0.00028767,2]
[314331539,1708189841478,-7045.23,0.00028767,2]
[314331541,1708189841487,-1151.52,0.00028767,2]
[314331543,1708189841496,-300.0,0.0002882,2]
[314331545,1708189841504,-8298.13,0.00028873,2]
[314331547,1708189841513,-151.0,0.00028873,2]
[314331549,1708189841522,-1033.32,0.00028894,3]
[314331551,1708189841531,-9736.35399143,0.00028898,2]
[314331553,1708189841540,-29680.33152701,0.00028954,5]
[314331555,1708189841550,-151.0,0.00028954,2]
[314331557,1708189841559,-568.429312,0.00028954,2]
[314331559,1708189841568,-568.4293115,0.00028954,2]
[314331561,1708189841577,-1974.32885604,0.00029,7]
[314331563,1708189841586,-1000.0,0.00029,29]
[314331565,1708189841604,-422.16862063,0.00029,2]
[314331567,1708189841624,-151.0,0.00029,15]
[314331569,1708189841633,-1500.0,0.00029,2]
[314331571,1708189841642,-1500.0,0.00029,2]
[314331573,1708189841651,-1503.69,0.00029,2]
[314331575,1708189841661,-1938.02221768,0.00029003,2]
[314331577,1708189841671,-6049.34,0.00029026,2]
[314331579,1708189841680,-6721.49,0.0002903,2]
[314331581,1708189841690,-7468.32,0.00029039,2]
[314331583,1708189841699,-151.0,0.0002904,2]
[314331585,1708189841708,-500.0,0.00029041,2]
[314331587,1708189841716,-234.66231295,0.00029041,2]
[314331589,1708189841725,-500.0,0.00029041,2]
[314331591,1708189841734,-580.14,0.00029041,2]
[314331592,1708189841744,-590.73,0.00029041,2]
[314331594,1708189841753,-571.95,0.00029041,2]
[314331596,1708189841762,-519.94,0.00029041,2]
[314331598,1708189841772,-1171.93,0.00029041,2]
[314331600,1708189841781,-500.0,0.00029041,2]
[314331603,1708189841790,-500.0,0.00029041,2]
[314331605,1708189841800,-500.0,0.00029041,2]
[314331606,1708189841810,-644.06,0.00029041,2]
[314331608,1708189841819,-825.93,0.00029041,2]
[314331610,1708189841827,-1000.0,0.00029041,2]
[314331612,1708189841836,-500.0,0.00029041,2]
[314331614,1708189841846,-351.34724734,0.00029041,2]
[314331616,1708189841855,-500.0,0.00029041,2]
[314331618,1708189841863,-500.0,0.00029041,2]
[314331620,1708189841874,-1022.87,0.00029041,2]
[314331622,1708189841884,-10935.51,0.00029041,2]
[314331624,1708189841893,-7067.18,0.00029041,2]
[314331626,1708189841902,-500.0,0.00029041,2]
[314331628,1708189841911,-1585.15,0.00029041,2]
[314331630,1708189841921,-5713.42,0.00029041,2]
[314331632,1708189841930,-2084.15,0.00029041,2]
[314331634,1708189841939,-500.0,0.00029041,2]
[314331636,1708189841948,-500.0,0.00029041,2]
[314331638,1708189841957,-782.06,0.00029041,2]
[314331640,1708189841967,-870.91,0.00029041,2]
[314331642,1708189841976,-1726.08,0.00029041,2]
[314331644,1708189841985,-1035.61,0.00029041,2]
[314331646,1708189841995,-500.0,0.00029041,2]
[314331648,1708189842004,-500.0,0.00029041,2]
[314331650,1708189842013,-756.19,0.00029041,2]
[314331652,1708189842022,-500.0,0.00029041,2]
[314331654,1708189842032,-1431.14,0.00029041,2]
[314331656,1708189842041,-8931.85,0.00029041,2]
[314331658,1708189842050,-739.83,0.00029041,2]
[314331660,1708189842059,-623.27,0.00029041,2]
[314331662,1708189842069,-5166.52,0.00029041,2]
[314331664,1708189842078,-1200.27,0.00029041,2]
[314331666,1708189842088,-500.0,0.00029041,2]
[314331668,1708189842097,-4263.38,0.00029041,2]
[314331670,1708189842106,-1042.33,0.00029041,2]
[314331672,1708189842117,-892.66,0.00029041,2]
[314331674,1708189842127,-295.36967243,0.00029041,2]
[314331676,1708189842137,-1492.84,0.00029041,2]
[314331678,1708189842145,-500.0,0.00029041,2]
[314331680,1708189842155,-772.32,0.00029041,2]
[314331682,1708189842168,-500.0,0.00029041,2]
[314331684,1708189842177,-7045.23,0.00029041,2]
[314331686,1708189842187,-1151.52,0.00029041,2]
[314331688,1708189842198,-1475.872227,0.00029085,2]
[314331690,1708189842208,-787.57579,0.00029085,2]
[314331692,1708189842220,-300.0,0.00029203,2]
[314331694,1708189842231,-1239.52988024,0.000293,2]
[314331696,1708189842240,-3968.97,0.00029308,2]
[314331699,1708189842249,-5444.41,0.00029314,2]
[314331701,1708189842259,-4899.96,0.00029314,2]
[314331703,1708189842269,-4409.97,0.00029314,2]
[314331705,1708189842278,-500.0,0.00029314,2]
[314331707,1708189842287,-500.0,0.00029314,2]
[314331709,1708189842297,-500.0,0.00029314,2]
[314331710,1708189842306,-186.79483224,0.00029314,2]
[314331712,1708189842316,-223.29758661,0.00029314,2]
[314331714,1708189842325,-500.0,0.00029314,2]
[314331716,1708189842334,-500.0,0.00029314,2]
[314331718,1708189842344,-221.07040186,0.00029314,2]
[314331720,1708189842352,-500.0,0.00029314,2]
[314331722,1708189842361,-291.08381287,0.00029314,2]
[314331724,1708189842370,-500.0,0.00029314,2]
[314331727,1708189842379,-500.0,0.00029314,2]
[314331730,1708189842388,-500.0,0.00029315,2]
[314331733,1708189842397,-500.0,0.00029315,2]
[314331737,1708189842406,-580.14,0.00029315,2]
[314331740,1708189842415,-590.73,0.00029315,2]
[314331742,1708189842424,-571.95,0.00029315,2]
[314331746,1708189842433,-519.94,0.00029315,2]
[314331748,1708189842443,-1171.93,0.00029315,2]
[314331750,1708189842451,-500.0,0.00029315,2]
[314331752,1708189842460,-500.0,0.00029315,2]
[314331754,1708189842469,-500.0,0.00029315,2]
[314331756,1708189842478,-644.06,0.00029315,2]
[314331758,1708189842487,-825.93,0.00029315,2]
[314331760,1708189842495,-264.42650796,0.00029315,2]
[314331762,1708189842504,-500.0,0.00029315,2]
[314331764,1708189842512,-500.0,0.00029315,2]
[314331766,1708189842521,-500.0,0.00029315,2]
[314331768,1708189842530,-1022.87,0.00029315,2]
[314331770,1708189842539,-10935.51,0.00029315,2]
[314331772,1708189842548,-7067.18,0.00029315,2]
[314331774,1708189842556,-500.0,0.00029315,2]
[314331776,1708189842565,-1585.15,0.00029315,2]
[314331778,1708189842574,-5713.42,0.00029315,2]
[314331780,1708189842584,-2084.15,0.00029315,2]
[314331782,1708189842593,-500.0,0.00029315,2]
[314331784,1708189842603,-500.0,0.00029315,2]
[314331786,1708189842612,-782.06,0.00029315,2]
[314331788,1708189842621,-870.91,0.00029315,2]
[314331790,1708189842630,-1726.08,0.00029315,2]
[314331792,1708189842639,-1035.61,0.00029315,2]
[314331794,1708189842648,-500.0,0.00029315,2]
[314331795,1708189842660,-500.0,0.00029315,2]
[314331798,1708189842671,-756.19,0.00029315,2]
[314331799,1708189842679,-500.0,0.00029315,2]
[314331801,1708189842691,-1431.14,0.00029315,2]
[314331804,1708189842702,-8931.85,0.00029315,2]
[314331805,1708189842712,-739.83,0.00029315,2]
[314331808,1708189842721,-623.27,0.00029315,2]
[314331810,1708189842730,-5166.52,0.00029315,2]
[314331811,1708189842739,-1200.27,0.00029315,2]
[314331814,1708189842749,-500.0,0.00029315,2]
[314331815,1708189842758,-4263.38,0.00029315,2]
[314331817,1708189842767,-1042.33,0.00029315,2]
[314331819,1708189842776,-892.66,0.00029315,2]
[314331822,1708189842785,-1492.84,0.00029315,2]
[314331824,1708189842795,-500.0,0.00029315,2]
[314331825,1708189842806,-772.32,0.00029315,2]
[314331827,1708189842815,-500.0,0.00029315,2]
[314331829,1708189842824,-7045.23,0.00029315,2]
[314331831,1708189842834,-1151.52,0.00029315,2]
[314331833,1708189842843,-1938.02221768,0.0002934,2]
[314331835,1708189842853,-1475.872227,0.0002944,2]
[314331844,1708189842925,-787.57579,0.0002944,2]
[314331846,1708189842935,-300.0,0.00029587,2]
[314331848,1708189842944,-326.94939536,0.00029588,2]
[314331850,1708189842953,-2893.38,0.00029588,2]
[314331852,1708189842963,-500.0,0.00029589,2]
[314331854,1708189842973,-580.14,0.00029589,2]
[314331856,1708189842982,-590.73,0.00029589,2]
[314331858,1708189842991,-571.95,0.00029589,2]
[314331860,1708189843002,-519.94,0.00029589,2]
[314331862,1708189843011,-1171.93,0.00029589,2]
[314331864,1708189843021,-500.0,0.00029589,2]
[314331866,1708189843030,-500.0,0.00029589,2]
[314331868,1708189843040,-500.0,0.00029589,2]
[314331870,1708189843049,-644.06,0.00029589,2]
[314331872,1708189843057,-825.93,0.00029589,2]
[314331874,1708189843067,-500.0,0.00029589,2]
[314331876,1708189843075,-500.0,0.00029589,2]
[314331878,1708189843084,-500.0,0.00029589,2]
[314331880,1708189843093,-1022.87,0.00029589,2]
[314331882,1708189843102,-10935.51,0.00029589,2]
[314331884,1708189843112,-7067.18,0.00029589,2]
[314331886,1708189843126,-500.0,0.00029589,2]
[314331888,1708189843135,-1585.15,0.00029589,2]
[314331890,1708189843144,-5713.42,0.00029589,2]
[314331892,1708189843153,-2084.15,0.00029589,2]
[314331894,1708189843162,-500.0,0.00029589,2]
[314331896,1708189843174,-500.0,0.00029589,2]
[314331898,1708189843183,-782.06,0.00029589,2]
[314331900,1708189843193,-870.91,0.00029589,2]
[314331902,1708189843202,-1726.08,0.00029589,2]
[314331904,1708189843212,-1035.61,0.00029589,2]
[314331906,1708189843224,-500.0,0.00029589,2]
[314331908,1708189843233,-500.0,0.00029589,2]
[314331910,1708189843243,-756.19,0.00029589,2]
[314331912,1708189843252,-500.0,0.00029589,2]
[314331914,1708189843261,-1431.14,0.00029589,2]
[314331916,1708189843270,-8931.85,0.00029589,2]
[314331918,1708189843279,-739.83,0.00029589,2]
[314331920,1708189843288,-623.27,0.00029589,2]
[314331922,1708189843297,-5166.52,0.00029589,2]
[314331924,1708189843306,-1200.27,0.00029589,2]
[314331926,1708189843315,-4263.38,0.00029589,2]
[314331928,1708189843324,-1042.33,0.00029589,2]
[314331930,1708189843333,-892.66,0.00029589,2]
[314331932,1708189843342,-1492.84,0.00029589,2]
[314331934,1708189843351,-223.7581717,0.00029589,2]
[314331936,1708189843359,-772.32,0.00029589,2]
[314331938,1708189843369,-500.0,0.00029589,2]
[314331940,1708189843378,-7045.23,0.00029589,2]
[314331942,1708189843387,-1151.52,0.00029589,2]
[314331944,1708189843396,-153.0,0.00029589,2]
[314331946,1708189843405,-376.5014956,0.00029589,2]
[314331948,1708189843414,-153.0,0.00029589,2]
[314331950,1708189843423,-308.5222135,0.00029589,2]
[314331952,1708189843432,-153.0,0.00029589,2]
[314331954,1708189843441,-153.0,0.00029589,2]
[314331956,1708189843449,-200.3193593,0.00029589,2]
[314331958,1708189843459,-153.0,0.00029589,2]
[314331960,1708189843468,-200.3193593,0.00029589,2]
[314331962,1708189843477,-153.0,0.00029589,2]
[314331964,1708189843486,-153.0,0.00029589,2]
[314331966,1708189843495,-200.3193593,0.00029589,2]
[314331968,1708189843504,-153.0,0.00029589,2]
[314331970,1708189843514,-200.3193593,0.00029589,2]
[314331972,1708189843523,-153.0,0.00029589,2]
[314331973,1708189843532,-308.766801,0.00029589,2]
[314331974,1708189843541,-369.9590275,0.00029589,2]
[314331975,1708189843550,-200.3193593,0.00029589,2]
[314331976,1708189843559,-200.3193593,0.00029589,2]
[314331978,1708189843568,-200.3193593,0.00029589,2]
[314331980,1708189843577,-200.3193593,0.00029589,2]
[314331982,1708189843587,-1938.02221768,0.00029676,2]
[314331984,1708189843597,-1898.153,0.00029748,11]
[314331986,1708189843606,-1475.872227,0.00029795,2]
[314331988,1708189843615,-787.57579,0.00029795,2]
[314331990,1708189843624,-3214.87,0.00029857,2]
[314331992,1708189843633,-1302.02,0.00029861,2]
[314331994,1708189843644,-1302.02,0.00029861,2]
[314331996,1708189843653,-1302.02,0.00029861,2]
[314331998,1708189843662,-1302.02,0.00029861,2]
[314332000,1708189843673,-1302.02,0.00029861,2]
[314332002,1708189843682,-1302.02,0.00029861,2]
[314332004,1708189843691,-1302.02,0.00029861,2]
[314332006,1708189843701,-1302.02,0.00029861,2]
[314332008,1708189843710,-1302.02,0.00029861,2]
[314332010,1708189843718,-1302.02,0.00029861,2]
[314332012,1708189843727,-3572.07,0.00029862,2]
[314332015,1708189843737,-559.1719839,0.00029863,7]
[314332017,1708189843746,-500.0,0.00029863,2]
[314332019,1708189843755,-580.14,0.00029863,2]
[314332021,1708189843763,-590.73,0.00029863,2]
[314332023,1708189843772,-571.95,0.00029863,2]
[314332025,1708189843781,-519.94,0.00029863,2]
[314332027,1708189843790,-1171.93,0.00029863,2]
[314332028,1708189843799,-500.0,0.00029863,2]
[314332030,1708189843808,-500.0,0.00029863,2]
[314332032,1708189843817,-644.06,0.00029863,2]
[314332035,1708189843827,-825.93,0.00029863,2]
[314332037,1708189843836,-539.16,0.00029863,2]
[314332039,1708189843845,-500.0,0.00029863,2]
[314332041,1708189843854,-500.0,0.00029863,2]
[314332043,1708189843863,-1022.87,0.00029863,2]
[314332045,1708189843872,-10935.51,0.00029863,2]
[314332047,1708189843881,-7067.18,0.00029863,2]
[314332049,1708189843890,-493.00244291,0.00029863,2]
[314332051,1708189843898,-1585.15,0.00029863,2]
[314332052,1708189843908,-5713.42,0.00029863,2]
[314332054,1708189843916,-2084.15,0.00029863,2]
[314332057,1708189843926,-500.0,0.00029863,2]
[314332058,1708189843934,-500.0,0.00029863,2]
[314332060,1708189843943,-782.06,0.00029863,2]
[314332063,1708189843953,-870.91,0.00029863,2]
[314332065,1708189843962,-1726.08,0.00029863,2]
[314332066,1708189843971,-1035.61,0.00029863,2]
[314332068,1708189843980,-643.24,0.00029863,2]
[314332070,1708189843989,-500.0,0.00029863,2]
[314332072,1708189843998,-756.19,0.00029863,2]
[314332074,1708189844007,-500.0,0.00029863,2]
[314332076,1708189844016,-1431.14,0.00029863,2]
[314332078,1708189844024,-8931.85,0.00029863,2]
[314332080,1708189844034,-739.83,0.00029863,2]
[314332082,1708189844042,-623.27,0.00029863,2]
[314332085,1708189844053,-5166.52,0.00029863,2]
[314332087,1708189844062,-1200.27,0.00029863,2]
[314332089,1708189844071,-4263.38,0.00029863,2]
[314332091,1708189844080,-1042.33,0.00029863,2]
[314332093,1708189844090,-892.66,0.00029863,2]
[314332095,1708189844098,-1492.84,0.00029863,2]
[314332097,1708189844107,-772.32,0.00029863,2]
[314332099,1708189844119,-500.0,0.00029863,2]
[314332101,1708189844127,-7045.23,0.00029863,2]
[314332103,1708189844139,-198.65947477,0.00029898,2]
[314332105,1708189844148,-69407.67417613,0.000299,2]
[314332107,1708189844158,-152.11265099,0.000299,2]
[314332109,1708189844169,-300.0,0.0002997,2]
[314332111,1708189844178,-536.41732279,0.00029988,2]
[314332113,1708189844187,-143847.05851052,0.0002999,2]
[314332116,1708189844203,-6548.99604576,0.0002999,2]
[314332125,1708189844275,-1151.52,0.00029863,2]
[314332126,1708189844284,-307.80777625,0.0002999,2]
[314332301,1708189845957,-500.0,0.00027397,2]
[314332303,1708189845967,-676.0,0.0002999,2]
[314332475,1708191022714,158.937567,0.00027397,120]
[314332476,1708191022936,158.937567,0.00031963,120]
[314332502,1708191032109,-286.39335264,0.00023884,2]
[314332504,1708191032118,-742.80892487,0.00023885,2]
[314332506,1708191032128,-404.02792007,0.00023886,2]
[314332508,1708191032137,-12036.985752,0.00023917,2]
[314332510,1708191032146,-178.47342276,0.00023936,2]
[314332512,1708191032154,-157.515158,0.00025515,2]
[314332514,1708191032163,-295.174445,0.00025515,2]
[314332516,1708191032172,-157.515158,0.00025515,2]
[314332518,1708191032181,-295.174446,0.00025515,2]
[314332520,1708191032190,-157.515158,0.00025515,2]
[314332522,1708191032200,-295.174445,0.00025515,2]
[314332523,1708191032209,-88.98199865,0.00025515,2]
[314332580,1708191038183,-63.05274335,0.00025515,2]
[314332583,1708191038193,-157.515158,0.00025834,2]
[314332585,1708191038202,-295.174445,0.00025834,2]
[314332587,1708191038213,-157.515158,0.00025834,2]
[314332589,1708191038222,-295.174446,0.00025834,2]
[314332590,1708191038232,-157.515158,0.00025834,2]
[314332592,1708191038241,-295.174445,0.00025834,2]
[314332594,1708191038251,-157.515158,0.00026153,2]
[314332596,1708191038261,-295.174445,0.00026153,2]
[314332598,1708191038270,-157.515158,0.00026153,2]
[314332600,1708191038281,-295.174446,0.00026153,2]
[314332602,1708191038290,-157.515158,0.00026153,2]
[314332604,1708191038300,-295.174445,0.00026153,2]
[314332606,1708191038309,-1316.87405881,0.00026334,3]
[314332608,1708191038322,-14378.06090899,0.00026334,3]
[314332610,1708191038331,-392.52275227,0.00026334,3]
[314332612,1708191038341,-633.13290146,0.00026334,3]
[314332614,1708191038351,-157.515158,0.00026472,2]
[314332616,1708191038361,-295.174445,0.00026472,2]
[314332618,1708191038370,-157.515158,0.00026472,2]
[314332620,1708191038380,-295.174446,0.00026472,2]
[314332622,1708191038390,-157.515158,0.00026472,2]
[314332624,1708191038399,-295.174445,0.00026472,2]
[314332626,1708191038409,-157.515158,0.00026791,2]
[314332628,1708191038418,-295.174445,0.00026791,2]
[314332630,1708191038427,-157.515158,0.00026791,2]
[314332632,1708191038438,-295.174446,0.00026791,2]
[314332634,1708191038448,-157.515158,0.00026791,2]
[314332636,1708191038457,-295.174445,0.00026791,2]
[314332638,1708191038471,-172.22,0.00027387,3]
[314332640,1708191038482,-516.66,0.00027387,3]
[314332642,1708191038490,-1718.73,0.00027387,3]
[314332644,1708191038500,-1432.27,0.00027387,3]
[314332646,1708191038512,-1193.56,0.00027387,3]
[314332648,1708191038521,-994.63,0.00027387,3]
[314332650,1708191038530,-500.0,0.00027397,2]
[314332652,1708191038540,-500.0,0.00027397,2]
[314332654,1708191038549,-500.0,0.00027397,2]
[314332656,1708191038560,-500.0,0.00027397,2]
[314332658,1708191038569,-264.42650796,0.00027397,2]
[314332660,1708191038578,-500.0,0.00027397,2]
[314332662,1708191038588,-1476.27,0.00027397,2]
[314332664,1708191038598,-767.68,0.00027397,2]
[314332666,1708191038607,-500.0,0.00027397,2]
[314332668,1708191038616,-830.12,0.00027397,2]
[314332670,1708191038627,-500.0,0.00027397,2]
[314332671,1708191038637,-500.0,0.00027397,2]
[314332673,1708191038646,-500.0,0.00027397,2]
[314332675,1708191038656,-500.0,0.00027397,2]
[314332677,1708191038666,-619.45,0.00027397,2]
[314332679,1708191038676,-500.0,0.00027397,2]
[314332682,1708191038685,-5283.92,0.00027397,2]
[314332683,1708191038694,-500.0,0.00027397,2]
[314332685,1708191038703,-8527.23,0.00027397,2]
[314332687,1708191038713,-500.0,0.00027397,2]
[314332689,1708191038722,-4285.07,0.00027397,2]
[314332691,1708191038733,-500.0,0.00027397,2]
[314332693,1708191038742,-500.0,0.00027397,2]
[314332695,1708191038751,-586.55,0.00027397,2]
[314332697,1708191038760,-554.88,0.00027397,2]
[314332699,1708191038769,-500.0,0.00027397,2]
[314332701,1708191038779,-653.18,0.00027397,2]
[314332703,1708191038788,-351.34724734,0.00027397,2]
[314332705,1708191038797,-500.0,0.00027397,2]
[314332708,1708191038807,-500.0,0.00027397,2]
[314332710,1708191038818,-1188.87,0.00027397,2]
[314332711,1708191038828,-500.0,0.00027397,2]
[314332713,1708191038837,-3874.89,0.00027397,2]
[314332715,1708191038845,-1294.56,0.00027397,2]
[314332717,1708191038854,-3197.54,0.00027397,2]
[314332719,1708191038863,-500.0,0.00027397,2]
[314332721,1708191038873,-550.1142543,0.00027397,2]
[314332723,1708191038882,-1119.63,0.00027397,2]
[314332725,1708191038891,-567.14,0.00027397,2]
[314332727,1708191038900,-6698.89,0.00027397,2]
[314332729,1708191038909,-611.42,0.00027397,2]
[314332731,1708191038918,-1073.35,0.00027397,2]
[314332733,1708191038927,-500.0,0.00027397,2]
[314332735,1708191038936,-776.71,0.00027397,2]
[314332737,1708191038945,-500.0,0.00027397,2]
[314332739,1708191038953,-825.18,0.00027397,2]
[314332741,1708191038962,-767.15,0.00027397,2]
[314332743,1708191038971,-950.21,0.00027397,2]
[314332745,1708191038981,-706.68,0.00027397,2]
[314332747,1708191038990,-500.0,0.00027397,2]
[314332749,1708191038999,-5300.38,0.00027397,2]
[314332751,1708191039008,-500.0,0.00027397,2]
[314332753,1708191039017,-500.0,0.00027671,2]
[314332755,1708191039026,-500.0,0.00027671,2]
[314332757,1708191039035,-500.0,0.00027671,2]
[314332759,1708191039044,-500.0,0.00027671,2]
[314332761,1708191039054,-1476.27,0.00027671,2]
[314332763,1708191039063,-767.68,0.00027671,2]
[314332765,1708191039072,-500.0,0.00027671,2]
[314332767,1708191039081,-830.12,0.00027671,2]
[314332769,1708191039090,-500.0,0.00027671,2]
[314332771,1708191039099,-500.0,0.00027671,2]
[314332773,1708191039109,-500.0,0.00027671,2]
[314332775,1708191039119,-500.0,0.00027671,2]
[314332777,1708191039128,-619.45,0.00027671,2]
[314332779,1708191039137,-500.0,0.00027671,2]
[314332781,1708191039147,-5283.92,0.00027671,2]
[314332783,1708191039156,-8527.23,0.00027671,2]
[314332785,1708191039165,-500.0,0.00027671,2]
[314332787,1708191039175,-4285.07,0.00027671,2]
[314332789,1708191039184,-500.0,0.00027671,2]
[314332791,1708191039194,-500.0,0.00027671,2]
[314332793,1708191039202,-586.55,0.00027671,2]
[314332795,1708191039211,-554.88,0.00027671,2]
[314332797,1708191039220,-500.0,0.00027671,2]
[314332799,1708191039231,-653.18,0.00027671,2]
[314332801,1708191039240,-500.0,0.00027671,2]
[314332803,1708191039249,-500.0,0.00027671,2]
[314332804,1708191039258,-1188.87,0.00027671,2]
[314332806,1708191039266,-500.0,0.00027671,2]
[314332807,1708191039275,-3874.89,0.00027671,2]
[314332809,1708191039284,-1294.56,0.00027671,2]
[314332811,1708191039294,-3197.54,0.00027671,2]
[314332813,1708191039303,-567.14,0.00027671,2]
[314332815,1708191039312,-1119.63,0.00027671,2]
[314332817,1708191039321,-6698.89,0.00027671,2]
[314332819,1708191039330,-611.42,0.00027671,2]
[314332821,1708191039339,-1073.35,0.00027671,2]
[314332823,1708191039348,-500.0,0.00027671,2]
[314332825,1708191039358,-776.71,0.00027671,2]
[314332827,1708191039367,-500.0,0.00027671,2]
[314332829,1708191039376,-825.18,0.00027671,2]
[314332831,1708191039386,-767.15,0.00027671,2]